bitfinex/quotes_ETHUSD_20250622
["timestamp","ask_amount","ask_price","bid_price","bid_amount"]
[1750631593652,0.057,2219.3,2218.5,7.80718967]
[1750631593989,0.03028846,2219.3,2218.5,7.80718967]
[1750631594401,0.03028846,2219.3,2218.6,10.55]
[1750631594559,0.03028846,2219.3,2218.5,7.80718967]
[1750631594758,0.03028846,2219.3,2218.6,10.0]
[1750631595782,0.03028846,2219.3,2218.9,10.0]
[1750631597078,0.0564,2219.2,2218.6,10.44702972]
[1750631597278,0.03028846,2219.3,2218.6,10.0]
[1750631597787,0.03028846,2219.3,2218.6,10.0187]
[1750631597951,0.03028846,2219.3,2218.9,10.0]
[1750631598151,1.7135,2219.4,2218.9,10.0]
[1750631598359,0.03028846,2219.3,2218.9,10.0]
[1750631598870,0.0564,2219.2,2218.6,10.45113629]
[1750631599078,0.0564,2219.2,2218.6,0.45113629]
[1750631599393,1.6017,2219.1,2218.3,10.0187]
[1750631599896,2.262,2219.0,2218.3,10.0187]
[1750631600057,0.03028846,2218.9,2218.3,10.0187]
[1750631600253,1.6017,2219.1,2218.6,10.0]
[1750631600454,1.6017,2219.1,2218.8,0.0187]
[1750631600455,2.262,2219.0,2218.8,0.0187]
[1750631600667,0.03028846,2219.3,2218.9,10.0]
[1750631600880,2.262,2219.2,2219.0,0.0187]
[1750631601103,2.262,2219.2,2218.8,10.0187]
[1750631601760,0.03028846,2219.1,2218.6,0.45172295]
[1750631601961,0.03028846,2219.1,2218.7,0.0187]
[1750631602374,0.03028846,2219.1,2218.6,0.45858228]
[1750631602576,0.03028846,2219.1,2218.5,10.0]
[1750631602577,0.08668846,2219.1,2218.5,10.0]
[1750631602769,1.5037,2219.0,2218.5,10.0]
[1750631602974,0.03028846,2218.9,2218.5,10.0]
[1750631603487,9.0907,2219.0,2218.5,10.0]
[1750631603811,2.34868846,2218.9,2218.5,10.0]
[1750631603978,2.34868846,2218.9,2218.3,0.0187]
[1750631604705,2.29228846,2218.9,2218.4,7.80718967]
[1750631604904,1.5037,2219.0,2218.6,0.0187]
[1750631605204,2.262,2218.8,2218.6,0.0187]
[1750631605365,1.5037,2219.0,2218.8,10.0187]
[1750631605559,2.262,2218.9,2218.8,10.0187]
[1750631605991,2.262,2218.9,2218.8,10.0]
[1750631606195,2.262,2218.9,2218.5,10.0187]
[1750631606693,0.03028846,2218.8,2218.5,10.0]
[1750631606992,2.29228846,2218.9,2218.5,10.0606]
[1750631607372,2.29228846,2218.9,2218.5,10.0]
[1750631607564,2.262,2218.9,2218.5,10.0]
[1750631607993,2.262,2218.9,2218.6,0.0606]
[1750631608864,2.262,2218.9,2218.5,10.0]
[1750631609494,2.262,2218.9,2218.6,0.0606]
[1750631609694,2.262,2218.9,2218.6,0.52311957]
[1750631609919,10.8884,2219.4,2218.9,0.0606]
[1750631609920,1.6612,2219.3,2218.9,0.0606]
[1750631610077,10.832,2219.4,2219.2,10.0]
[1750631610078,13.094,2219.4,2219.2,10.0]
[1750631610283,13.094,2219.4,2219.2,10.0606]
[1750631610600,13.094,2219.4,2219.2,10.0]
[1750631611109,0.03028846,2219.3,2219.1,1.354644]
[1750631611325,0.03028846,2219.3,2218.9,10.0606]
[1750631611665,0.03028846,2219.3,2219.0,1.354765]
[1750631611870,1.6217,2219.2,2218.6,10.52221205]
[1750631612092,0.03028846,2219.1,2218.6,10.46161205]
[1750631612298,0.03028846,2219.1,2218.8,1.3549]
[1750631612683,1.5653,2219.2,2218.8,1.3809]
[1750631612901,10.832,2219.4,2219.0,0.026]
[1750631613072,2.256,2219.5,2219.3,0.026]
[1750631615180,2.256,2219.5,2219.4,17.83318967]
[1750631615378,2.256,2219.9,2219.5,2.0983]
[1750631615713,2.256,2219.9,2219.8,10.0]
[1750631615915,2.256,2220.0,2219.8,10.026]
[1750631616117,2.256,2220.0,2219.9,0.026]
[1750631616316,2.256,2220.2,2220.0,0.026]
[1750631616526,2.256,2220.2,2219.8,10.0]
[1750631616823,0.03028846,2220.1,2219.8,10.0]
[1750631617319,0.03028846,2220.1,2219.8,0.45861624]
[1750631617489,1.628,2220.0,2219.6,0.026]
[1750631618018,0.03028846,2219.9,2219.6,0.026]
[1750631618224,1.628,2220.0,2219.6,0.026]
[1750631618583,0.03028846,2219.9,2219.5,10.0]
[1750631619128,1.628,2220.0,2219.7,0.026]
[1750631619298,0.03028846,2220.2,2219.8,10.026]
[1750631619502,2.256,2220.0,2219.8,10.46697542]
[1750631619808,2.256,2220.0,2219.8,0.44097542]
[1750631620012,2.256,2220.0,2219.7,10.0]
[1750631620184,2.256,2220.0,2219.8,0.026]
[1750631620581,2.256,2220.0,2219.7,10.0]
[1750631620811,2.256,2220.0,2219.8,0.026]
[1750631621720,2.256,2220.0,2219.7,10.0]
[1750631622026,0.03028846,2219.9,2219.3,1.5864]
[1750631622231,0.03028846,2219.9,2219.3,11.5864]
[1750631622405,0.03028846,2219.9,2219.4,0.576]
[1750631622916,0.03028846,2219.9,2219.4,0.55]
[1750631623116,0.03028846,2219.9,2219.5,7.83318967]
[1750631623426,0.03028846,2219.9,2219.6,10.0]
[1750631623630,0.03028846,2219.9,2219.7,0.026]
[1750631623929,2.256,2219.9,2219.8,17.80718967]
[1750631624235,2.28628846,2219.9,2219.8,10.0]
[1750631624632,2.28628846,2219.9,2219.8,10.46209845]
[1750631625203,2.256,2219.9,2219.8,10.46209845]
[1750631625522,2.256,2220.0,2219.9,10.0]
[1750631625724,2.256,2220.0,2219.8,9.64958312]
[1750631626340,2.256,2220.1,2220.0,0.0521]
[1750631626838,11.0567101,2220.4,2220.0,0.0521]
[1750631627135,0.2257101,2220.4,2220.2,10.0]
[1750631627337,0.2257101,2220.4,2220.3,0.6021]
[1750631627901,0.2257101,2220.4,2220.3,2.2551]
[1750631628130,0.2257101,2220.4,2220.3,12.2551]
[1750631629347,0.2257101,2220.4,2220.3,16.75899586]
[1750631629632,0.2257101,2220.4,2220.3,12.2551]
[1750631630609,7.579,2221.2,2220.6,0.55]
[1750631630610,2.255,2221.2,2220.6,0.55]
[1750631630849,2.255,2221.2,2221.1,7.80718967]
[1750631631037,1.5991,2221.5,2221.2,10.0]
[1750631631210,1.58910838,2222.9,2221.2,10.0]
[1750631631211,2.255,2221.6,2221.3,0.0521]
[1750631631545,2.255,2221.6,2221.1,7.85928967]
[1750631631751,2.255,2221.6,2221.1,8.30533736]
[1750631631905,0.0585,2221.4,2221.1,0.44604769]
[1750631632115,0.03028846,2221.3,2220.9,10.0]
[1750631632458,0.03028846,2221.3,2220.9,10.0521]
[1750631632459,2.255,2221.2,2220.9,10.0521]
[1750631632658,1.6512,2221.4,2220.9,10.0521]
[1750631632834,2.28528846,2221.3,2220.9,10.0521]
[1750631633156,2.28528846,2221.3,2220.9,10.0]
[1750631633456,0.08878846,2221.3,2220.9,10.0]
[1750631633621,2.3135,2221.2,2220.9,10.0]
[1750631633818,0.03028846,2221.1,2220.9,10.0]
[1750631634023,2.28528846,2221.2,2220.9,10.45953013]
[1750631634230,2.255,2221.2,2220.9,10.45953013]
[1750631635533,2.28528846,2221.2,2220.9,10.45953013]
[1750631636135,1.6512,2221.4,2221.1,7.80718967]
[1750631636355,2.255,2221.3,2221.2,10.0]
[1750631636736,2.255,2221.3,2220.9,0.45953013]
[1750631636937,2.255,2221.3,2220.8,17.80718967]
[1750631637151,2.255,2221.3,2221.0,0.0515]
[1750631637874,2.255,2221.3,2221.2,10.0]
[1750631638269,2.255,2221.3,2221.2,10.6071]
[1750631638653,1.5093,2222.0,2221.2,10.0]
[1750631638854,9.8875,2221.9,2221.2,17.80718967]
[1750631639056,0.03028846,2221.8,2221.2,17.80718967]
[1750631639667,0.03028846,2221.8,2221.2,17.86428967]
[1750631640052,0.03028846,2221.8,2221.2,17.80718967]
[1750631640254,0.0585,2221.6,2221.2,10.0]
[1750631640474,0.03028846,2221.6,2221.0,10.0]
[1750631640777,0.03028846,2221.6,2221.0,11.35355]
[1750631640778,0.08878846,2221.6,2221.0,11.35355]
[1750631641177,1.6153,2221.7,2221.2,7.80718967]
[1750631641381,1.6153,2221.7,2221.3,10.0]
[1750631641382,0.03028846,2221.6,2221.3,10.0]
[1750631641558,0.03028846,2221.6,2221.0,11.35355]
[1750631641559,0.08878846,2221.6,2221.0,11.35355]
[1750631642277,0.03028846,2221.6,2221.3,10.0]
[1750631642601,9.0743,2222.0,2221.0,1.35355]
[1750631642602,1.5013,2221.5,2221.0,1.35355]
[1750631642776,0.08878846,2221.4,2220.9,18.26097057]
[1750631642983,1.5013,2221.5,2221.3,10.0571]
[1750631643284,2.247,2221.6,2221.3,10.0571]
[1750631643577,2.247,2221.7,2221.6,10.0]
[1750631644476,2.197,2221.7,2221.6,10.0]
[1750631644686,2.197,2221.7,2221.3,10.0]
[1750631644687,2.247,2221.7,2221.3,10.0]
[1750631645060,2.247,2221.7,2221.4,0.0571]
[1750631645604,0.03028846,2221.8,2221.3,10.0]
[1750631645748,2.247,2222.2,2221.9,0.55]
[1750631645945,10.821,2222.9,2222.3,0.0571]
[1750631646190,1.352847,2224.3,2221.7,12.07200371]
[1750631646191,3.8048,2223.2,2222.5,17.86428967]
[1750631646480,0.03028846,2223.1,2222.5,17.86428967]
[1750631646686,3.8633,2223.2,2222.5,17.86428967]
[1750631647049,3.8048,2223.2,2222.5,18.41428967]
[1750631647368,0.03028846,2223.4,2222.7,0.55]
[1750631647568,2.3055,2223.3,2222.9,10.0]
[1750631647772,0.08878846,2223.2,2222.9,10.0]
[1750631648147,0.0585,2224.0,2222.7,1.5152]
[1750631648354,1.663,2224.3,2224.0,10.0]
[1750631648560,1.663,2224.3,2224.0,17.86428967]
[1750631648779,2.247,2224.5,2224.0,17.86428967]
[1750631648987,2.247,2224.5,2224.1,1.351786]
[1750631649193,1.663,2224.7,2224.1,1.351786]
[1750631649394,2.3055,2224.4,2224.1,1.351786]
[1750631649759,2.247,2224.4,2224.1,1.351786]
[1750631650291,1.7215,2224.7,2224.1,1.351786]
[1750631650475,2.246,2224.3,2224.1,1.351786]
[1750631650665,2.246,2224.2,2224.1,1.351786]
[1750631650872,1.663,2224.7,2224.1,1.408886]
[1750631651187,2.246,2224.6,2224.1,1.351786]
[1750631651388,0.0585,2224.5,2224.1,1.351786]
[1750631651593,9.846,2224.4,2224.1,1.351786]
[1750631651754,9.9045,2224.4,2224.1,1.351786]
[1750631651957,0.0585,2224.3,2224.1,1.351786]
[1750631652152,9.9045,2224.4,2224.1,1.351786]
[1750631652393,1.6264,2224.3,2224.1,1.351786]
[1750631652563,1.5679,2224.3,2224.1,1.351786]
[1750631652892,0.0585,2224.2,2224.1,1.351786]
[1750631653088,0.0585,2224.2,2224.0,0.45324731]
[1750631653258,0.0585,2224.2,2223.0,8.15]
[1750631653259,0.0585,2224.0,2222.7,1.6116]
[1750631653463,9.846,2224.4,2222.2,7.84588967]
[1750631653464,0.0283,2223.6,2222.2,7.84588967]
[1750631653656,0.0283,2223.0,2222.4,1.352622]
[1750631653984,1.5055,2222.8,2221.6,7.84588967]
[1750631654159,20.6893,2222.7,2221.6,7.84588967]
[1750631654359,20.6893,2222.7,2221.7,10.0]
[1750631654596,20.6893,2222.7,2221.6,7.84588967]
[1750631654797,10.8413,2222.7,2221.7,0.04500597]
[1750631655094,9.847,2222.6,2221.7,10.04500597]
[1750631655394,1.6664,2222.5,2221.7,10.0]
[1750631655573,7.602,2222.4,2221.6,8.29062339]
[1750631656008,7.602,2222.4,2221.7,0.04500595]
[1750631656223,9.846,2222.3,2221.7,18.04500595]
[1750631656387,2.246,2222.2,2222.0,10.0387]
[1750631656789,2.246,2222.2,2222.0,10.0]
[1750631657116,2.246,2222.2,2221.7,10.0]
[1750631657613,1.6664,2222.5,2221.7,10.0]
[1750631657614,9.848,2222.1,2221.7,10.0]
[1750631657809,1.6664,2222.5,2221.7,10.0]
[1750631658007,1.6664,2222.5,2221.6,8.25192339]
[1750631658008,2.246,2222.4,2222.1,0.0387]
[1750631658206,2.246,2222.4,2222.3,17.80718967]
[1750631658691,2.246,2222.4,2222.3,10.0]
[1750631658895,2.246,2222.4,2222.3,28.0]
[1750631659817,3.7957,2222.4,2222.3,28.0]
[1750631660281,1.5497,2222.4,2222.3,28.0]
[1750631660483,11.3987,2222.4,2222.3,28.0]
[1750631661213,11.3987,2222.4,2222.3,10.0]
[1750631661414,11.3947,2222.4,2222.3,10.0]
[1750631661719,2.246,2222.4,2222.3,10.0]
[1750631667921,3.7745,2222.4,2222.3,10.0]
[1750631668436,1.5002,2222.3,2221.2,1.353213]
[1750631668633,1.5002,2222.3,2220.9,1.5068]
[1750631668634,1.5002,2222.1,2220.9,9.31398967]
[1750631668794,1.5002,2221.9,2220.9,7.80718967]
[1750631669001,2.246,2221.8,2220.8,7.86398967]
[1750631669195,2.246,2221.8,2220.6,1.353653]
[1750631669196,1.6661,2221.6,2220.6,1.353653]
[1750631669395,10.8443,2221.7,2220.6,1.353653]
[1750631669396,1.6661,2221.3,2220.6,1.353653]
[1750631669602,2.246,2221.2,2220.2,7.86398967]
[1750631669802,2.246,2221.2,2220.3,10.0]
[1750631670006,2.246,2221.2,2220.2,7.86398967]
[1750631670328,1.6661,2221.1,2220.2,7.86398967]
[1750631670540,7.596,2221.0,2220.2,7.86398967]
[1750631670713,1.6944,2220.9,2220.0,0.45141924]
[1750631670897,1.6944,2220.9,2219.9,7.80718967]
[1750631671101,1.6901,2220.8,2219.7,7.80718967]
[1750631671332,1.6901,2220.8,2219.8,10.0]
[1750631671831,1.6901,2220.8,2219.8,28.0]
[1750631672036,0.0283,2220.7,2219.8,18.0]
[1750631672243,14.6266,2220.6,2219.9,10.0]
[1750631672406,0.0283,2220.3,2219.9,10.0]
[1750631672602,1.5616,2220.4,2219.9,10.0]
[1750631672802,9.853,2220.3,2219.9,10.0568]
[1750631673030,1.5616,2220.4,2220.0,7.80718967]
[1750631673227,2.29,2220.2,2220.0,7.86398967]
[1750631673409,2.29,2220.2,2220.1,10.0]
[1750631674012,2.29,2220.2,2219.8,10.0568]
[1750631674447,2.29,2220.2,2219.9,0.0568]
[1750631674654,2.29,2220.2,2220.1,10.0]
[1750631675143,1.5616,2220.4,2220.1,10.0568]
[1750631675344,2.29,2220.3,2220.1,28.0]
[1750631675506,2.29,2220.3,2220.2,0.0568]
[1750631675906,10.818,2220.6,2220.2,0.0568]
[1750631676139,10.818,2220.6,2220.5,10.0568]
[1750631677612,2.29,2220.8,2220.6,0.0568]
[1750631677938,7.608,2221.0,2220.9,10.0568]
[1750631678143,9.898,2221.0,2220.9,10.0568]
[1750631678350,9.898,2221.0,2220.9,10.0]
[1750631678547,9.898,2221.0,2220.6,0.0568]
[1750631679233,1.6613,2221.4,2221.0,0.0568]
[1750631679435,1.6613,2221.4,2220.9,10.0]
[1750631679436,9.896,2221.3,2220.9,10.0]
[1750631680034,9.896,2221.3,2220.5,10.0]
[1750631681767,9.896,2221.3,2220.5,10.0568]
[1750631682953,9.896,2221.3,2220.6,0.0568]
[1750631683158,9.896,2221.3,2220.2,2.961391]
[1750631683159,9.896,2221.3,2220.8,10.0]
[1750631683354,9.896,2221.3,2220.8,10.0568]
[1750631684155,9.896,2221.3,2220.5,10.0597]
[1750631684326,9.896,2221.3,2220.6,0.0597]
[1750631684524,9.896,2221.3,2220.8,10.0]
[1750631684745,9.896,2221.3,2220.8,10.0597]
[1750631685231,9.896,2221.3,2220.8,10.0]
[1750631685431,9.896,2221.3,2220.9,0.0597]
[1750631685653,9.892,2221.2,2220.8,11.6388]
[1750631685855,9.892,2221.2,2220.9,0.0597]
[1750631686430,1.6613,2221.4,2221.0,7.80718967]
[1750631686631,9.89,2221.3,2221.2,0.0597]
[1750631688357,9.89,2221.3,2221.1,10.0]
[1750631688559,9.89,2221.3,2221.2,0.0597]
[1750631690165,9.885,2221.3,2221.2,0.0597]
[1750631691370,10.821,2221.5,2221.2,0.0597]
[1750631691536,9.882,2221.4,2221.2,0.0597]
[1750631691733,2.29,2221.4,2221.1,11.638]
[1750631692078,18.407,2221.5,2221.4,10.0597]
[1750631692245,10.821,2221.5,2221.4,10.0597]
[1750631692427,13.111,2221.5,2221.4,10.0597]
[1750631692632,13.111,2221.5,2221.4,10.0]
[1750631692832,13.111,2221.5,2221.4,11.353415]
[1750631693066,13.111,2221.5,2221.4,10.0]
[1750631693942,13.111,2221.5,2221.4,10.0597]
[1750631694143,13.111,2221.5,2221.4,10.0]
[1750631696957,20.686,2221.5,2221.4,10.0597]
[1750631698960,10.821,2221.5,2221.4,10.0597]
[1750631699167,20.686,2221.5,2221.4,10.0597]
[1750631699367,20.686,2221.5,2221.4,10.0]
[1750631701388,20.686,2221.5,2221.3,1.35347]
[1750631701389,22.2159,2221.5,2221.3,1.35347]
[1750631701546,1.5582,2221.4,2220.8,0.4557915]
[1750631701741,1.5299,2221.4,2220.9,0.0597]
[1750631701943,9.865,2221.3,2221.2,10.0]
[1750631702270,9.865,2221.3,2221.2,10.0597]
[1750631702467,10.821,2221.5,2221.2,10.0597]
[1750631702655,9.865,2221.4,2221.2,10.0]
[1750631702855,9.865,2221.4,2221.3,0.0597]
[1750631704398,9.865,2221.4,2221.3,20.66298827]
[1750631705487,10.821,2221.5,2221.4,10.0]
[1750631705674,20.646,2221.5,2221.4,0.0597]
[1750631706077,10.821,2221.5,2221.4,0.0597]
[1750631706391,2.251,2221.8,2221.5,0.0597]
[1750631706707,2.251,2221.8,2221.7,10.0]
[1750631707504,2.251,2221.8,2221.7,20.66298827]
[1750631708104,9.825,2221.8,2221.7,20.66298827]
[1750631709502,2.251,2222.1,2221.9,0.0597]
[1750631709709,2.251,2222.1,2222.0,20.66298827]
[1750631709882,1.6085,2222.6,2222.1,10.0]
[1750631710086,9.825,2222.5,2222.4,10.0]
[1750631710599,9.825,2222.5,2222.4,10.0597]
[1750631710800,9.825,2222.5,2222.4,10.50751164]
[1750631711103,2.251,2222.6,2222.4,11.98101164]
[1750631711399,2.251,2222.6,2222.5,10.0]
[1750631711801,2.251,2222.6,2222.5,20.60328827]
[1750631713186,9.825,2222.6,2222.5,20.66298827]
[1750631713386,10.819,2222.8,2222.6,10.0]
[1750631713590,9.825,2222.7,2222.6,0.0597]
[1750631713791,9.824,2222.7,2222.4,0.44781164]
[1750631714004,1.6025,2222.6,2221.9,10.60328827]
[1750631714301,1.6025,2222.4,2221.8,0.45060596]
[1750631714514,7.573,2222.3,2221.7,10.0]
[1750631714859,9.824,2222.2,2221.4,1.353213]
[1750631715087,9.1433,2222.1,2221.3,10.60328827]
[1750631715277,1.5703,2222.1,2222.0,10.0]
[1750631715478,11.3943,2222.1,2222.0,10.0]
[1750631715788,11.3943,2222.1,2221.7,10.0]
[1750631716207,11.3943,2222.1,2221.7,10.0571]
[1750631716411,9.824,2222.1,2221.8,0.0571]
[1750631716596,1.6131,2222.3,2221.7,10.0]
[1750631716597,9.824,2222.0,2221.7,10.0571]
[1750631716909,2.251,2222.0,2221.7,10.0571]
[1750631717205,2.251,2222.0,2221.7,10.0]
[1750631717505,2.251,2222.0,2221.8,0.0571]
[1750631717713,2.251,2222.0,2221.7,10.0]
[1750631718217,2.251,2222.0,2221.7,10.0571]
[1750631719106,2.251,2222.0,2221.7,10.0]
[1750631721816,9.824,2221.9,2221.7,10.0]
[1750631723517,9.824,2221.9,2221.4,0.45029047]
[1750631723720,9.824,2221.9,2221.3,10.60328827]
[1750631724091,9.824,2221.9,2221.7,10.0]
[1750631724912,9.823,2221.8,2221.7,10.0]
[1750631725216,1.6566,2222.1,2221.7,10.0571]
[1750631725391,2.251,2222.0,2221.8,0.0571]
[1750631725596,9.823,2222.0,2221.9,20.66038827]
[1750631726795,9.823,2222.0,2221.9,20.60328827]
[1750631727822,9.823,2222.0,2221.9,10.0]
[1750631728039,9.823,2222.0,2221.5,10.60328827]
[1750631728333,9.823,2222.0,2221.0,12.342]
[1750631728334,1.5883,2221.9,2221.2,10.60328827]
[1750631728487,1.5883,2221.9,2221.3,10.0]
[1750631729327,1.5883,2221.9,2221.3,10.45683219]
[1750631729530,1.56,2221.9,2221.1,1.353433]
[1750631729682,1.6559,2221.7,2220.9,10.60328827]
[1750631729882,9.823,2222.0,2220.9,10.60328827]
[1750631729883,1.5798,2221.5,2220.9,10.60328827]
[1750631730136,2.251,2221.4,2221.0,10.0]
[1750631730318,1.5798,2221.5,2221.0,10.0]
[1750631730492,9.823,2221.4,2221.3,10.0]
[1750631731710,9.823,2221.4,2220.9,0.0571]
[1750631731711,9.823,2221.4,2221.0,10.0]
[1750631732387,9.823,2221.4,2221.0,10.0571]
[1750631732587,10.818,2221.6,2221.3,10.0]
[1750631732797,9.823,2221.5,2221.3,10.0]
[1750631733202,7.572,2221.4,2221.3,10.0571]
[1750631733727,10.818,2221.6,2221.3,10.0]
[1750631734030,2.251,2221.5,2221.2,0.0571]
[1750631734189,2.251,2221.5,2221.3,0.0571]
[1750631734391,9.823,2221.9,2221.4,1.56910998]
[1750631734595,2.251,2221.9,2221.5,0.0571]
[1750631735324,10.819,2222.5,2222.0,1.6537]
[1750631735498,2.249,2222.4,2222.1,0.0571]
[1750631735820,2.249,2222.8,2222.5,10.0571]
[1750631736035,2.249,2222.8,2222.5,10.0]
[1750631736241,2.249,2222.8,2222.6,0.0571]
[1750631736598,2.249,2222.8,2222.5,10.0]
[1750631737938,2.249,2222.8,2222.2,0.0571]
[1750631738104,2.249,2222.8,2222.5,10.0]
[1750631738299,1.507,2223.0,2222.6,0.0571]
[1750631738499,9.819,2222.9,2222.8,10.0]
[1750631739637,2.248,2222.9,2222.8,10.0571]
[1750631739838,9.819,2222.9,2222.8,10.0571]
[1750631740315,2.248,2222.9,2222.8,10.0571]
[1750631741326,2.248,2222.9,2222.6,0.0571]
[1750631741713,2.248,2222.9,2222.5,11.5706]
[1750631742226,2.248,2222.9,2222.6,0.0571]
[1750631742398,2.248,2222.9,2222.5,10.0]
[1750631742603,2.248,2222.9,2222.5,10.0571]
[1750631743039,1.6378,2222.8,2222.5,10.0]
[1750631743410,1.6378,2222.8,2222.2,10.0571]
[1750631744313,9.817,2222.7,2222.2,10.0]
[1750631744538,9.817,2222.7,2222.2,10.0577]
[1750631744737,1.6736,2222.6,2221.8,10.60328827]
[1750631745244,1.6453,2222.6,2221.8,10.66098827]
[1750631745662,1.6453,2222.6,2221.9,10.0]
[1750631745820,9.817,2222.5,2222.2,10.0]
[1750631746528,9.817,2222.5,2221.7,1.353104]
[1750631746529,9.817,2222.5,2221.9,10.0]
[1750631747738,9.817,2222.5,2221.9,10.0577]
[1750631748407,1.6453,2222.6,2221.9,10.0577]
[1750631748606,9.817,2222.5,2221.9,10.0577]
[1750631749242,1.6453,2222.6,2221.9,10.0577]
[1750631749447,1.6453,2222.6,2222.3,0.0577]
[1750631749741,9.816,2222.5,2222.3,0.0577]
[1750631749943,1.6453,2222.6,2222.4,10.60328827]
[1750631750245,9.816,2222.8,2222.6,0.0577]
[1750631750450,9.816,2222.8,2222.7,20.66098827]
[1750631751034,1.6265,2223.1,2222.8,10.0]
[1750631751239,7.568,2222.9,2222.8,0.0577]
[1750631751417,7.568,2222.9,2222.7,10.60328827]
[1750631751618,7.568,2222.9,2222.8,0.0577]
[1750631752051,7.568,2222.9,2222.6,0.0577]
[1750631752242,7.568,2222.9,2222.8,10.0577]
[1750631753041,7.568,2222.9,2222.5,11.5686]
[1750631753350,7.568,2222.9,2222.5,10.0577]
[1750631754454,7.568,2222.9,2222.5,10.0]
[1750631754614,1.4157,2222.8,2222.5,10.0]
[1750631755017,1.4157,2222.8,2222.2,0.0577]
[1750631755243,1.4157,2222.8,2222.3,1.352756]
[1750631755449,1.4157,2222.8,2222.1,22.07338827]
[1750631755625,1.4157,2222.8,2222.1,23.42624227]
[1750631755830,1.4157,2222.8,2222.2,0.0577]
[1750631757248,1.4157,2222.8,2222.1,21.95614227]
[1750631757457,1.4157,2222.8,2222.1,20.60328827]
[1750631758956,1.4157,2222.8,2222.5,10.0]
[1750631759164,2.248,2222.8,2222.7,20.60328827]
[1750631759451,2.248,2222.8,2222.7,20.66098827]
[1750631759656,10.819,2223.4,2222.8,10.0577]
[1750631759879,2.248,2223.3,2223.2,10.0577]
[1750631760026,1.4409,2223.8,2223.3,1.4192]
[1750631760360,2.248,2223.7,2223.6,10.0]
[1750631761667,2.248,2223.7,2222.5,0.0577]
[1750631761668,1.3502,2223.6,2222.5,0.0577]
[1750631762187,1.4327,2223.4,2222.5,0.0577]
[1750631762342,7.564,2223.3,2222.5,0.0577]
[1750631762548,7.564,2223.3,2222.3,10.0]
[1750631762549,1.4327,2223.2,2222.3,10.0]
[1750631762857,13.061,2223.1,2222.3,10.0577]
[1750631763188,13.061,2223.1,2222.3,0.0577]
[1750631763471,1.332,2223.0,2222.3,10.0577]
[1750631763654,1.332,2223.0,2222.3,0.51014607]
[1750631763830,1.332,2223.0,2222.3,10.51014607]
[1750631764030,9.812,2222.9,2222.3,10.51014607]
[1750631764260,9.812,2222.9,2222.3,0.51014607]
[1750631765866,1.3314,2222.7,2221.9,2.831324]
[1750631766232,1.3314,2222.7,2222.0,10.0]
[1750631766633,1.3314,2222.7,2222.1,0.0577]
[1750631767575,9.806,2222.6,2222.1,0.0577]
[1750631767738,9.806,2222.6,2222.2,0.0577]
[1750631768936,9.806,2222.6,2222.1,0.4963835]
[1750631769173,9.806,2222.5,2222.2,8.31336614]
[1750631769337,9.806,2222.5,2222.2,8.25566614]
[1750631769675,9.806,2222.5,2222.0,10.0]
[1750631769832,9.806,2222.5,2222.0,10.45949305]
[1750631770038,9.806,2222.5,2222.1,0.0577]
[1750631770574,9.806,2222.5,2222.0,10.45949305]
[1750631771082,9.806,2222.5,2222.1,0.0577]
[1750631772076,9.806,2222.5,2222.0,10.45949305]
[1750631772457,1.3134,2222.4,2222.0,0.45949305]
[1750631772663,1.3134,2222.4,2221.8,1.39805277]
[1750631772961,1.3134,2222.4,2222.0,10.0577]
[1750631774493,1.3134,2222.4,2222.0,10.51178468]
[1750631774955,1.3134,2222.4,2222.0,10.51358468]
[1750631775291,1.3134,2222.4,2222.1,0.0595]
[1750631775496,1.3134,2222.4,2222.0,10.45408468]
[1750631776396,1.3134,2222.4,2222.0,0.45408468]
[1750631776563,1.3417,2222.4,2221.8,0.0595]
[1750631777196,1.3417,2222.4,2221.8,0.50461922]
[1750631778998,1.3134,2222.4,2221.8,0.44511922]
[1750631779164,1.3358,2222.0,2220.6,0.0595]
[1750631779364,1.4318,2221.7,2220.3,1.406]
[1750631779561,0.0283,2221.5,2220.3,0.0595]
[1750631779805,30.1320524,2221.9,2220.3,0.0595]
[1750631779806,1.4318,2221.3,2220.3,0.0595]
[1750631780026,1.3978,2221.1,2220.3,0.0595]
[1750631780330,1.3978,2220.9,2220.3,0.0595]
[1750631780809,1.3978,2220.9,2220.0,9.73846614]
[1750631781013,9.805,2221.0,2219.4,8.112]
[1750631781014,1.4364,2220.2,2219.4,1.354111]
[1750631781319,1.4364,2220.0,2219.1,0.0595]
[1750631781471,9.805,2219.9,2219.4,0.0595]
[1750631781672,9.805,2219.9,2219.6,10.0]
[1750631781673,2.243,2219.8,2219.6,10.0]
[1750631781869,2.243,2219.8,2219.7,0.0595]
[1750631783212,2.243,2219.8,2219.3,10.6095]
[1750631783398,2.243,2219.8,2219.3,10.55]
[1750631783909,2.243,2219.8,2219.4,0.0595]